Cogmind - Beta 17 @@@ ROGUE MODE // 2026.08.10 @ 19:01:45 Player: Pitt Result: Destroyed by Y-54 Guardian with Gatling Laser Performance ------------- Evolutions (3) 1500 Regions Visited (8) 1600 Robots Destroyed (95) 475 Value Destroyed (2236) 2236 Prototype IDs (3) 60 Alien Tech Used (0) 0 Bonus (654) 654 TOTAL SCORE: 6525 Bonus ------- Follower Combat Kills 665 Friendly Fire -11 Cogmind --------- Core Integrity 0/700 Matter 15/300 Energy 52/100 System Corruption 27% Temperature Cool (6) Movement Core (50) Location -7/Factory Parts ------- > --- POWER (2) -------- (None) > --- PROPULSION (4) --- (None) > --- UTILITY (5) ------ Machine Analyzer Visual Processing Unit Advanced Terrain Scan Processor > --- WEAPON (2) ------- Backup Laser I Backup Laser I > --- INVENTORY (5) ---- Huge Storage Unit Arc Projector Beam Rifle Compact Ion Cannon Improved Datajack Peak State ------------ > --- POWER ------------ Deuterium Engine Light Nuclear Core > --- PROPULSION ------- Light Treads Light Treads Light Treads Light Treads > --- UTILITY ---------- Huge Storage Unit Machine Analyzer Improved Terrain Scanner Advanced Terrain Scan Processor Hacking Suite > --- WEAPON ----------- Beam Rifle Assault Cannon > --- INVENTORY -------- Improved Heat Sink Sensor Array Seismic Detector Core Analyzer Recalibrator Drone Bay Compact Ion Cannon Gauss Rifle Gauss Cannon Rocket Launcher Improved Datajack [Rating: 32] Favorites ----------- Power Light Nuclear Core Engine Light Ion Engine Power Core Light Nuclear Core Propulsion Light Treads Treads Light Treads Leg Aluminum Leg Wheel Wheel Hover Unit Improved Hover Unit Flight Unit Improved Flight Unit Utility Machine Analyzer Device Sensor Array Storage Large Storage Unit Processor Machine Analyzer Hackware Hacking Suite Protection Hardened Light Armor Plating Weapon Beam Rifle Energy Gun Beam Rifle Energy Cannon Compact Ion Cannon Ballistic Gun Light Assault Rifle Ballistic Cannon Assault Cannon Launcher Rocket Launcher Special Weapon Mining Laser Slashing Weapon Axe Special Melee Weapon Improved Datajack Build | -11 -10 -10 -9 -8 -8 -7 -7 -7 ------- Run | Yrd Mat Min Mat Mat Sto Fac Was Fac Slots Evolved 6 | . . . 2 2 . 2 . . Power 1 | . . . . . . 1 . . Propulsion 2 | . . . 1 1 . . . . Utility 3 | . . . 1 1 . 1 . . Weapon . | . . . . . . . . . Parts Attached 94 | 9 19 1 33 1 14 7 3 7 Power 16 | 2 3 . 5 . 3 2 . 1 Engine 12 | 2 3 . 3 . 2 1 . 1 Core 4 | . . . 2 . 1 1 . . Reactor . | . . . . . . . . . Propulsion 30 | 3 6 . 14 1 4 1 . 1 Treads 5 | . 1 . . . 4 . . . Leg 10 | . 3 . 6 . . 1 . . Wheel 5 | 3 1 . . . . . . 1 Hover 5 | . 1 . 3 1 . . . . Flight 5 | . . . 5 . . . . . Utility 24 | 2 5 1 7 . 3 3 2 1 Device 8 | 2 1 1 1 . 2 . . 1 Storage 4 | . 2 . 1 . . 1 . . Processor 6 | . . . 3 . . 2 1 . Hackware 2 | . . . . . 1 . 1 . Protection 4 | . 2 . 2 . . . . . Artifact . | . . . . . . . . . Weapon 24 | 2 5 . 7 . 4 1 1 4 Energy Gun 7 | . 3 . 1 . 1 . . 2 Energy Cannon 2 | . . . . . 1 . . 1 Ballistic Gun 6 | 2 1 . 1 . 1 . 1 . Ballistic Cannon 2 | . . . . . 1 . . 1 Launcher 1 | . . . 1 . . . . . Special Weapon 1 | . 1 . . . . . . . Impact Weapon . | . . . . . . . . . Slashing Weapon 3 | . . . 3 . . . . . Piercing Weapon . | . . . . . . . . . Special Melee Weapon 2 | . . . 1 . . 1 . . Unidentified Prototypes 3 | . . . 2 . 1 . . . Corrupted Parts 1 | . . . . . . . 1 . System Corruption 10 | . . . . . . . 10 . Parts Lost 36 | . 9 . 7 . 4 7 3 6 Power 7 | . 1 . 2 . . 2 1 1 Propulsion 14 | . 4 . 3 . 3 3 . 1 Utility 5 | . 1 . 1 . . 1 . 2 Weapon 10 | . 3 . 1 . 1 1 2 2 Highest Loss Streak 6 | . 2 . 2 . 2 6 3 5 To Critical Strikes 3 | . 2 . . . 1 . . . Average Backups 11 | 3 10 14 14 9 9 10 6 3 Power . | . . . . . . . . . Propulsion 1 | . 2 4 1 . . . . . Utility 6 | . 6 9 9 7 6 5 2 1 Weapon 2 | 1 2 1 2 1 1 3 3 2 Tool/Special . | . . . . . . . . . Unused Backups 19 | 2 4 1 7 . 1 . 3 1 Power 1 | . . . 1 . . . . . Propulsion 8 | 2 2 . 4 . . . . . Utility 6 | . 2 . 1 . 1 . 2 . Weapon 4 | . . 1 1 . . . 1 1 Tool/Special . | . . . . . . . . . Average Slot Usage (%) 90 | . 92 100 95 81 90 95 55 56 Engine 7 | . 12 14 4 . 6 6 4 2 Core 3 | . . . 5 9 2 5 . . Treads 8 | . 4 . . . 19 27 2 . Leg 7 | . 6 28 16 . . . 4 . Wheel 3 | . 11 . . . . . . 5 Hover 2 | . 1 . 2 27 9 . . . Flight 3 | . . . 11 . . . . . Device 8 | . 10 10 8 9 9 6 2 2 Storage 9 | . 13 14 11 9 9 7 1 . Processor 8 | . . . 8 9 9 15 21 23 Hackware 3 | . . . . . 8 7 6 6 Protection 2 | . 3 3 5 . . . . . Energy Gun 6 | . 8 28 5 . 4 6 4 . Ballistic Gun 5 | . 17 . 4 . . . 2 . Ballistic Cannon 2 | . . . . . 6 5 . 6 Slashing Weapon 3 | . . . 10 18 1 . . . Peak Build Rating 32 | 9 10 12 24 23 29 32 23 24 Average Rating 18 | 6 8 10 19 22 24 28 19 21 On Entrance 15 | . 9 10 12 21 23 23 23 14 Avg Prop Armor Cover (%) 4 | . 6 . 1 . 3 11 11 . Naked Turns . | . . . . . . . . . Heaviest Build 103 | 9 33 30 38 21 29 103 90 12 Greatest Support 80 | 26 26 20 51 27 80 80 15 10 Greatest Overweight (x) 8 | . 8 1 6 1 3 6 5 2 Average Overweight (x) . | . . 1 1 . . . . . Largest Inventory Capacity 25 | 5 15 15 15 10 10 25 25 5 Average Capacity 12 | 5 10 15 14 10 10 18 9 5 Most Carried 15 | 5 15 15 15 10 10 11 11 5 Average Carried 11 | 3 10 14 14 9 9 10 6 3 Final Capacity 25 | 5 15 15 10 10 10 25 5 5 Final Carried 15 | 5 15 15 10 9 10 11 5 5 Class Distribution -------------------- 54% | Scavenger-Mutant 34% | Mutant 6% | Scavenger-Skirmisher 3% | Commander-Mutant Dominant Class ---------------- Mutant | -10/Materials Scavenger-Mutant | -10/Mines Scavenger-Mutant | -9/Materials Scavenger-Mutant | -8/Materials Scavenger-Mutant | -8/Storage Scavenger-Mutant | -7/Factory Scavenger-Mutant | -7/Waste Mutant | -7/Factory Resources | -11 -10 -10 -9 -8 -8 -7 -7 -7 ----------- Run | Yrd Mat Min Mat Mat Sto Fac Was Fac Matter Collected 2287 | 329 458 11 686 . 539 217 . 47 Remotely . | . . . . . . . . . Salvage Created 2896 | 102 801 11 1003 . 760 191 . 28 Parts 211 | 11 58 3 72 . 48 12 . 7 Haulers Intercepted 4 | . 1 . 2 . 1 . . . Recyclers Shooed 7 | . 4 . 1 . 2 . . . Parts Field Recycled . | . . . . . . . . . Retrieved Matter . | . . . . . . . . . Parts Self-Destructed . | . . . . . . . . . Prevented . | . . . . . . . . . Parts Restored . | . . . . . . . . . Kills | -11 -10 -10 -9 -8 -8 -7 -7 -7 ------- Run | Yrd Mat Min Mat Mat Sto Fac Was Fac Combat Hostiles Destroyed 57 | . 17 . 20 . 14 6 . . Melee 16 | . . . 15 . 1 . . . Guns 24 | . 17 . 3 . 1 3 . . Cannons 7 | . . . . . 6 1 . . AOE 10 | . . . 2 . 6 2 . . Classes Destroyed 14 | 3 7 . 2 . 1 1 . . Worker 6 | 2 . . 3 . . 1 . . Builder 5 | . 2 . . . 2 1 . . Tunneler 6 | 1 1 1 1 . . . . 2 Hauler 4 | . 1 . 2 . 1 . . . Recycler 5 | 1 1 . . . 3 . . . Mechanic 4 | . 1 . 1 . 1 . . 1 Operator 1 | . 1 . . . . . . . Watcher 7 | . 3 . 1 . 2 1 . . Swarmer 17 | . 8 . 5 . 4 . . . Grunt 24 | . 9 . 10 . 3 2 . . Duelist 1 | . . . 1 . . . . . Sentry 10 | . . . 4 . 6 . . . Hunter 3 | . . . . . 1 2 . . Programmer 2 | . . . . . . 2 . . Best Kill Streak 7 | 2 4 1 4 . 7 3 . 2 Combat Bots Only 5 | . 3 . 4 . 5 2 . . Max Kills in Single Turn 5 | 1 2 1 3 . 5 3 . 1 Gunslinging 1 | . 1 . . . . . . . Exploded 4 | . . . 2 . 4 2 . . Melee 1 | . . . 1 . 1 . . . Uniques/NPCs Destroyed . | . . . . . . . . . Combat | -11 -10 -10 -9 -8 -8 -7 -7 -7 -------- Run | Yrd Mat Min Mat Mat Sto Fac Was Fac Hostile Shots Fired 604 | . 133 4 122 . 72 69 3 201 Missed 173 | . 39 2 21 . 16 17 1 77 Hits 431 | . 94 2 101 . 56 52 2 124 Melee 4 | . . . 2 . . . 2 . Projectile 427 | . 94 2 99 . 56 52 . 124 AOE 2 | . . 1 . . . . . 1 Critical Strikes 10 | . 2 . 2 . 3 2 1 . Damage Taken 5065 | . 980 77 1269 . 749 894 147 949 Core 1404 | . 164 12 349 . 179 105 86 509 Absorbed by Shields . | . . . . . . . . . Redirected to Shielding 24 | . . . 24 . . . . . Regen/Repaired (Parts) 204 | . . . 50 . 154 . . . Core Remaining (%) 52 | 100 . 29 12 . 67 . . . Volleys Fired 276 | 12 120 4 38 . 58 30 4 10 Largest 2 | 2 2 2 2 . 2 2 1 1 Hottest 127 | 40 105 105 100 . 127 93 33 65 Shots Fired 446 | 24 186 8 72 . 80 61 4 11 Gun 327 | 24 182 8 69 . 14 30 . . Cannon 96 | . . . . . 60 25 . 11 Launcher 18 | . . . 2 . 6 6 4 . Special 5 | . 4 . 1 . . . . . Kinetic 259 | 24 136 . 33 . 33 25 . 8 Thermal 153 | . 34 8 37 . 41 30 . 3 Explosive 18 | . . . 2 . 6 6 4 . Electromagnetic 16 | . 16 . . . . . . . Robot Hit Streak 16 | 4 16 1 16 . 9 16 1 9 Robot Miss Streak 5 | 2 5 3 4 . 3 3 4 . Penetration Max . | . . . . . . . . . Secondary Targets 2 | . 2 . . . . . . . Max Gunslinging Chain 1 | . 1 . . . . . . . Shots Hit Robots 325 | 13 116 3 82 . 58 41 1 11 Core Hits 142 | 7 45 3 31 . 30 19 2 5 Critical Kills . | . . . . . . . . . Critical Parts Destroyed 1 | . . . 1 . . . . . Critical Strikes 10 | . 1 . 7 . 1 1 . . Burn 6 | . 1 . 3 . 1 1 . . Destroy 1 | . . . 1 . . . . . Sever 3 | . . . 3 . . . . . Melee Attacks 101 | . . . 87 . 8 4 . 2 Impact . | . . . . . . . . . Slashing 90 | . . . 82 . 8 . . . Piercing . | . . . . . . . . . Sneak Attacks 17 | . . . 11 . . 4 . 2 Combat Hostiles . | . . . . . . . . . Follow-up Attacks 3 | . . . 2 . 1 . . . Damage Inflicted 7919 | 117 1110 61 2265 . 2021 1082 992 271 Guns 2373 | 117 1107 61 615 . 122 351 . . Cannons 1731 | . . . . . 1068 408 . 255 Explosions 2173 | . . . 265 . 607 309 992 . Melee 1609 | . . . 1385 . 224 . . . Ramming 33 | . 3 . . . . 14 . 16 Kinetic 2358 | 117 760 . 312 . 586 408 . 175 Thermal 1618 | . 219 61 303 . 604 351 . 80 Explosive 2173 | . . . 265 . 607 309 992 . Electromagnetic 128 | . 128 . . . . . . . Impact . | . . . . . . . . . Slashing 1609 | . . . 1385 . 224 . . . Piercing . | . . . . . . . . . Highest Corruption 27 | . . . 3 . . 2 26 27 Average Corruption 6 | . . . 2 . . 1 14 26 Corruption Purged . | . . . . . . . . . Corruption Blocked . | . . . . . . . . . Effects 97 | . . . 44 . . 9 10 34 Message Errors 23 | . . . 11 . . 2 . 10 Matter Fused 24 | . . . 11 . . 2 3 8 Heat Flow Errors 20 | . . . 8 . . 2 2 8 Energy Discharges 6 | . . . 3 . . . . 3 Parts Rejected 1 | . . . . . . . 1 . Parts Fused 1 | . . . 1 . . . . . Data Loss (minor) 14 | . . . 8 . . 2 2 2 Misfires 3 | . . . 1 . . 1 . 1 Alerts 2 | . . . 1 . . . . 1 Misdirections 3 | . . . . . . . 2 1 Overload Shots . | . . . . . . . . . Overflow Damage 255 | . . . 203 . 26 16 9 1 Projectiles 29 | . . . . . 24 4 . 1 Explosions 90 | . . . 67 . 2 12 9 . Melee 136 | . . . 136 . . . . . Knockbacks 11 | . . . . . 1 8 . 2 Impact . | . . . . . . . . . Kinetic 11 | . . . . . 1 8 . 2 Secondary . | . . . . . . . . . Self-Inflicted Damage 173 | . . . . . 28 77 61 7 Shots 5 | . . . . . 1 2 2 . Rammed 7 | . . . . . . 1 . 6 Targets Rammed 9 | . 1 1 . . . 1 . 6 Kicked 1 | . . 1 . . . . . . Crushed 1 | . 1 . . . . . . . Highest Temperature 343 | . 343 90 341 . 154 252 270 258 Average Temperature 75 | . 62 36 97 . 24 80 112 95 Received Heat Transfer 1374 | . 351 9 441 . 270 45 . 258 Effects 7 | . 3 . 4 . . . . . Shutdowns 1 | . 1 . . . . . . . Energy Bleed 4 | . 1 . 3 . . . . . Interference 1 | . . . 1 . . . . . Matter Decay 1 | . 1 . . . . . . . Siege Activations . | . . . . . . . . . Martial Activations . | . . . . . . . . . Shielding Activations . | . . . . . . . . . Robots Disrupted . | . . . . . . . . . Combat Hostiles . | . . . . . . . . . Robots Corrupted . | . . . . . . . . . Combat Hostiles . | . . . . . . . . . Parts Fried . | . . . . . . . . . Impact Corruptions . | . . . . . . . . . Robots Melted . | . . . . . . . . . Combat Hostiles . | . . . . . . . . . Parts Melted 7 | . 1 1 1 . 1 3 . . Heat Transferred 3715 | . 582 136 999 . 999 888 . 111 Parts Sabotaged . | . . . . . . . . . Parts Stolen . | . . . . . . . . . Parts Stripped . | . . . . . . . . . Power Chain Reactions . | . . . . . . . . . Alert | -11 -10 -10 -9 -8 -8 -7 -7 -7 ------- Run | Yrd Mat Min Mat Mat Sto Fac Was Fac Maximum Alert Level 1 | . . . 1 . 1 . . . Low Security (%) 87 | 100 100 100 74 100 63 100 100 100 Level 1 12 | . . . 25 . 36 . . . Level 2 . | . . . . . . . . . Level 3 . | . . . . . . . . . Level 4 . | . . . . . . . . . Level 5 . | . . . . . . . . . High Security . | . . . . . . . . . Max Security . | . . . . . . . . . Peak Influence 309 | 10 100 34 309 130 300 78 18 10 Initial 130 | . . 34 . 130 54 67 10 . Average 59 | 1 24 6 87 130 178 18 1 . Influence Increases 2791 | 20 537 5 754 . 968 463 22 22 Destroy 0b10 Robot/C 1520 | . 340 . 420 . 480 280 . . Destroy 0b10 Robot/NC 195 | 20 50 5 45 . 45 15 . 15 Destroy Leader 444 | . 78 . 128 . 176 62 . . Allied During Kill 220 | . . . 3 . 166 51 . . Successful Hack 105 | . 20 . 58 . 22 . . 5 Disable Machine 30 | . . . . . 30 . . . Destroy Structure 142 | . 4 . 40 . 49 25 22 2 Lose Combat Pursuer 135 | . 45 . 60 . . 30 . . Influence Decreases 2791 | 20 449 93 446 178 950 581 52 22 Entered New Map 409 | . . 54 . 178 76 81 20 . Time Decay 1727 | 20 398 39 379 . 474 383 12 22 Lost Part 180 | . 41 . 60 . 40 19 20 . Lost Ally 175 | . 10 . 7 . 60 98 . . Purge Threat 300 | . . . . . 300 . . . Squads Dispatched 11 | . 2 . 1 . 3 5 . . Investigation 5 | . 1 . 1 . 1 2 . . Extermination 3 | . . . . . . 3 . . Reinforcement 3 | . 1 . . . 2 . . . Assault . | . . . . . . . . . Garrison . | . . . . . . . . . Intercept . | . . . . . . . . . Searches Triggered . | . . . . . . . . . Construction Impeded . | . . . . . . . . . Haulers Reinforced . | . . . . . . . . . Active Scanning Responses . | . . . . . . . . . Cargo Convoy Interrupts . | . . . . . . . . . Stealth | -11 -10 -10 -9 -8 -8 -7 -7 -7 --------- Run | Yrd Mat Min Mat Mat Sto Fac Was Fac Distress Signals 6 | . . . 3 . 3 . . . Communications Jammed . | . . . . . . . . . Distress Signals . | . . . . . . . . . Times Spotted 139 | . 34 17 32 . 29 18 6 3 Peak Tracking Total 16 | . 4 16 5 . 7 4 6 2 Tactical Retreats 9 | . 2 . 4 . . 2 1 . Traps | -11 -10 -10 -9 -8 -8 -7 -7 -7 ------- Run | Yrd Mat Min Mat Mat Sto Fac Was Fac Traps Triggered 5 | . 1 . 2 . . 2 . . Indirectly . | . . . . . . . . . Trap Hack Attempts . | . . . . . . . . . Triggered . | . . . . . . . . . Disarmed 1 | . . . . . 1 . . . Reprogrammed . | . . . . . . . . . Reused . | . . . . . . . . . Traps Extracted . | . . . . . . . . . Installed . | . . . . . . . . . Triggered . | . . . . . . . . . Machines | -11 -10 -10 -9 -8 -8 -7 -7 -7 ---------- Run | Yrd Mat Min Mat Mat Sto Fac Was Fac Machines Disabled 2 | . . . . . 2 . . . Max in Single Turn 1 | . . . . . 1 . . . Machines Repaired . | . . . . . . . . . Machines Dismantled . | . . . . . . . . . Machines Sabotaged . | . . . . . . . . . Overloaded Fab Kills . | . . . . . . . . . Hacking | -11 -10 -10 -9 -8 -8 -7 -7 -7 --------- Run | Yrd Mat Min Mat Mat Sto Fac Was Fac Machines Accessed 33 | . 7 . 9 . 11 5 . 1 Terminals 27 | . 7 . 6 . 10 3 . 1 Fabricators . | . . . . . . . . . Repair Stations 3 | . . . 2 . 1 . . . Recycling Units 2 | . . . 1 . . 1 . . Scanalyzers . | . . . . . . . . . Garrison Access 1 | . . . . . . 1 . . Total Hacks 79 | . 14 . 28 . 25 7 . 5 Successful 38 | . 7 . 13 . 16 . . 2 Failed 41 | . 7 . 15 . 9 7 . 3 Catastrophic 5 | . . . 1 . 1 3 . . Database Lockouts . | . . . . . . . . . Manual 35 | . 12 . 14 . 5 1 . 3 Terminals 58 | . 14 . 16 . 19 4 . 5 Fabricators . | . . . . . . . . . Repair Stations 16 | . . . 10 . 6 . . . Recycling Units 3 | . . . 2 . . 1 . . Scanalyzers . | . . . . . . . . . Garrison Access 2 | . . . . . . 2 . . Terminal Hacks 22 | . 4 . 5 . 11 . . 2 Open Door 3 | . . . . . 3 . . . Terminal Index 3 | . 1 . . . 1 . . 1 Alert Level 4 | . . . 1 . 2 . . 1 Unreport Threat 2 | . . . . . 2 . . . Locate Traps 3 | . . . 1 . 2 . . . Disarm Traps 1 | . . . . . 1 . . . Transport Status 1 | . 1 . . . . . . . Zone Layout 5 | . 2 . 3 . . . . . Fabricator Hacks . | . . . . . . . . . Repair Station Hacks 10 | . . . 6 . 4 . . . Scan Component 6 | . . . 4 . 2 . . . Repair 4 | . . . 2 . 2 . . . Recycling Unit Hacks . | . . . . . . . . . Scanalyzer . | . . . . . . . . . Garrison Access Hacks . | . . . . . . . . . Unauthorized Hacks 6 | . 3 . 2 . 1 . . . Terminals 5 | . 3 . 1 . 1 . . . Assimilate 1 | . 1 . . . . . . . Botnet 1 | . 1 . . . . . . . Operators 3 | . 1 . 1 . 1 . . . Fabricators . | . . . . . . . . . Repair Stations . | . . . . . . . . . Recycling Units 1 | . . . 1 . . . . . Mask 1 | . . . 1 . . . . . Scanalyzers . | . . . . . . . . . Garrison Access . | . . . . . . . . . Data Cores Recovered . | . . . . . . . . . Used . | . . . . . . . . . Hacking Detections 26 | . 6 . 8 . 7 5 . . Full Trace Events 3 | . . . 1 . 1 1 . . Feedback Events 1 | . . . 1 . . . . . Corruption 1 | . . . 1 . . . . . Feedback Blocked . | . . . . . . . . . Robot Schematics Acquired . | . . . . . . . . . Robots Built . | . . . . . . . . . Authchips . | . . . . . . . . . Time . | . . . . . . . . . Total Robot Build Rating . | . . . . . . . . . Part Schematics Acquired . | . . . . . . . . . Parts Built . | . . . . . . . . . Authchips . | . . . . . . . . . Time . | . . . . . . . . . Total Part Build Rating . | . . . . . . . . . Part Studies Acquired . | . . . . . . . . . Parts Repaired 4 | . . . 2 . 2 . . . Time 185 | . . . 115 . 70 . . . Parts Recycled . | . . . . . . . . . Recycled Matter . | . . . . . . . . . Retrieved Matter . | . . . . . . . . . Retrieved Components . | . . . . . . . . . Parts Scanalyzed . | . . . . . . . . . Part Schematics Acquired . | . . . . . . . . . Parts Damaged . | . . . . . . . . . Bothacking | -11 -10 -10 -9 -8 -8 -7 -7 -7 ------------ Run | Yrd Mat Min Mat Mat Sto Fac Was Fac Used RIF Installer . | . . . . . . . . . Robots Hacked 8 | . . . 4 . . 2 . 2 Non-combat 8 | . . . 4 . . 2 . 2 Combat . | . . . . . . . . . Robot Hacks Applied 9 | . . . 5 . . 2 . 2 parse_system 1 | . . . 1 . . . . . no_distress 5 | . . . 3 . . . . 2 find_chute 1 | . . . . . . 1 . . find_recycling 1 | . . . . . . 1 . . find_station 1 | . . . 1 . . . . . Relay Couplers Released . | . . . . . . . . . Fabnet Peak Effective % . | . . . . . . . . . Robots Rewired . | . . . . . . . . . Allies Hacked 1 | . . . . . . 1 . . Hacks Repelled . | . . . . . . . . . Allies | -11 -10 -10 -9 -8 -8 -7 -7 -7 -------- Run | Yrd Mat Min Mat Mat Sto Fac Was Fac Total Allies 14 | . 1 3 . . 10 . . . Largest Group 10 | . 1 3 2 . 10 7 . . Highest-Rated Group 173 | . 10 40 24 . 173 125 . . Highest-Rated Ally 29 | . 10 16 16 . 29 29 . . Total Orders 4 | . . . . . 2 2 . . EXPLORE 2 | . . . . . 1 1 . . RETURN 2 | . . . . . 1 1 . . Ally Attacks 122 | . . 3 8 . 61 50 . . Total Damage 1613 | . . 36 102 . 857 618 . . Kills 20 | . . . 2 . 10 8 . . Allies Corrupted 1 | . . . 1 . . . . . Allies Melted . | . . . . . . . . . Intel | -11 -10 -10 -9 -8 -8 -7 -7 -7 ------- Run | Yrd Mat Min Mat Mat Sto Fac Was Fac Active Infowar (turns) 7967 | 66 1667 190 2175 9 1205 1753 207 695 Optics 859 | . . . . . . . 164 695 Sensors 2127 | . . . 577 . 405 1049 96 . Terrain 1893 | 66 768 106 376 . . 577 . . Structural 1598 | . 537 84 963 9 5 . . . Seismic 1150 | 63 409 . 203 . 187 . . 288 T.N.C. 569 | . . . 569 . . . . . Machine Analysis 4777 | . . . 908 9 1205 1753 207 695 Robot Analysis Total . | . . . . . . . . . Derelict Logs Recovered 1 | . . 1 . . . . . . Drone Launches 4 | . . . . . 2 2 . . Drone Recoveries 4 | . . . . . 2 2 . . Exploration | -11 -10 -10 -9 -8 -8 -7 -7 -7 ------------- Run | Yrd Mat Min Mat Mat Sto Fac Was Fac Turns Passed 9417 | 143 2238 246 2921 9 1205 1753 207 695 Spaces Moved 4285 | 88 858 119 1404 16 607 640 209 344 Core 245 | 4 7 . . . . . 132 102 Treads 1202 | . 288 . . . 298 616 . . Legs 1352 | . 245 119 887 . . 24 77 . Wheels 630 | 84 304 . . . . . . 242 Hover 483 | . 14 . 144 16 309 . . . Flight 373 | . . . 373 . . . . . Fastest Speed 48 | 50 80 190 107 48 48 160 50 50 Average Speed 154 | 86 155 190 164 52 129 214 90 87 Slowest Speed 540 | 100 450 190 460 112 240 540 470 150 Overloaded Moves . | . . . . . . . . . Propulsion Burnouts . | . . . . . . . . . Robots Hopped . | . . . . . . . . . Potential Cave-ins 6 | . . . . . 3 . 3 . Cave-ins Triggered . | . . . . . . . . . Exploration Rate (%) 41 | 5 79 47 55 2 87 13 84 4 Regions Visited 8 Branch Regions 2 Pre-discovered Areas 2 | . . 1 . . 1 . . . Known Exits Taken . | . . . . . . . . . Unknown Exits Taken 6 | 1 1 1 1 1 1 . . . Scrap Searched 1 | . . 1 . . . . . . Spaces Dug 35 | . 4 . 26 . 4 . . 1 Terrain Destroyed 161 | . 4 . 45 . 46 28 36 2 Melee 25 | . . . 25 . . . . . Projectile 25 | . 4 . 1 . 16 2 . 2 AOE 111 | . . . 19 . 30 26 36 . Terrain Rammed . | . . . . . . . . . Walls Destroyed . | . . . . . . . . . Machines Disabled . | . . . . . . . . . Actions | -11 -10 -10 -9 -8 -8 -7 -7 -7 --------- Run | Yrd Mat Min Mat Mat Sto Fac Was Fac Total 6518 | 132 1591 131 1809 16 931 961 221 726 Wait 1570 | 14 547 . 170 . 221 264 . 354 Move 4278 | 87 857 118 1403 15 606 640 208 344 Hop . | . . . . . . . . . Pick Up 65 | 7 21 2 23 . 4 5 2 1 Fast Attach 55 | 8 9 . 18 . 10 3 1 6 Attach 15 | . 3 . 4 1 1 2 2 2 Detach 7 | . 1 . 4 . 1 . . 1 Swap 79 | 1 19 3 31 . 14 9 2 . Drop 68 | 3 13 3 35 . 9 3 2 . Fire 276 | 12 120 4 38 . 58 30 4 10 Melee 96 | . . . 83 . 7 4 . 2 Ram 6 | . . . . . . . . 6 Kick 1 | . . 1 . . . . . . Crush 2 | . 1 . . . . 1 . . Escape Stasis . | . . . . . . . . . Rewire . | . . . . . . . . . Trap . | . . . . . . . . . Miscellaneous . | . . . . . . . . . Route ------- -11/Scrapyard -10/Materials (discovered 2 exits: *Mat / [*Min]) -10/Mines -9/Materials -8/Materials -8/Storage -7/Factory -7/Waste -7/Factory History --------- Turn | Location | Event 7 | -11/Scrapyard | Discovered new exit (range 16) 144 | -11/Scrapyard | Entered Materials 307 | -10/Materials | Build established: Mutant 1078 | -10/Materials | Discovered new exit (range 9) 1406 | -10/Materials | Build established: Scavenger-Mutant 1480 | -10/Materials | Discovered new exit (range 5) 1582 | -10/Materials | Core integrity fell below 50% 2382 | -10/Materials | Entered Mines 2390 | -10/Mines | Assisted by bots powering up and referring to "LRC-V3" 2429 | -10/Mines | Met a Derelict bent on vengeance 2574 | -10/Mines | Received a Rocket Launcher from a helpful Derelict 2587 | -10/Mines | Learned location of Zion (-6) 2602 | -10/Mines | Discovered new exit (range 15) 2609 | -10/Mines | Assembled infested the area 2614 | -10/Mines | Assisted by a Guerilla fighting off Assembled 2628 | -10/Mines | Entered Materials 2628 | -9/Materials | Accompanied by 2 allies 2628 | -9/Materials | Evolved 2 slots: Propulsion x1, Utility x1 3463 | -9/Materials | Build established: Mutant 3639 | -9/Materials | Discovered new exit (range 12) 4476 | -9/Materials | Core integrity fell below 50% 4656 | -9/Materials | Repaired Imp. Flight Unit 4722 | -9/Materials | Repaired Broken Imp. Flight Unit 4948 | -9/Materials | Build established: Scavenger-Mutant 5238 | -9/Materials | Core integrity fell below 20% 5549 | -9/Materials | Entered another Materials area 5549 | -8/Materials | Evolved 2 slots: Propulsion x1, Utility x1 5553 | -8/Materials | Discovered new exit (range 10) 5558 | -8/Materials | Entered Storage 6306 | -8/Storage | Assisted by bots powering up and referring to "LRC-V3" 6406 | -8/Storage | Learned location of Armory (-4) 6501 | -8/Storage | Repaired Assault Cannon 6534 | -8/Storage | Repaired Beam Rifle 6652 | -8/Storage | Discovered new exit (range 15) 6763 | -8/Storage | Entered Factory 6763 | -7/Factory | Accompanied by 7 allies 6763 | -7/Factory | Evolved 2 slots: Power x1, Utility x1 7201 | -7/Factory | P-60 Hacker assimilated allied Soldier 3a 7368 | -7/Factory | Lost 3 allies 8204 | -7/Factory | Build established: Scavenger-Skirmisher 8352 | -7/Factory | Lost 6 parts (2p3n1w) 8516 | -7/Factory | Sucked down chute 8516 | -7/Factory | Entered Waste 8531 | -7/Waste | EMP discharged 8531 | -7/Waste | System corruption reached 10% 8549 | -7/Waste | Spotted C-40 Crusher 8579 | -7/Waste | Spotted C-40 Crusher 8602 | -7/Waste | Spotted C-40 Crusher 8631 | -7/Waste | EMP discharged 8655 | -7/Waste | Crushed by Compactor (1 part destroyed, 1 dropped) 8657 | -7/Waste | Crushed by Compactor (1 part destroyed, 1 dropped) 8667 | -7/Waste | Spotted C-40 Crusher 8671 | -7/Waste | Spotted C-40 Crusher 8678 | -7/Waste | Spotted C-40 Crusher 8688 | -7/Waste | Lost 3 parts (1p2w) 8709 | -7/Waste | Discovered new exit (range 12) 8723 | -7/Waste | Entered Factory 8944 | -7/Factory | Build established: Mutant 9333 | -7/Factory | Core integrity fell below 50% 9366 | -7/Factory | Lost 5 parts (1p1n2u1w) 9408 | -7/Factory | Core integrity fell below 20% 9418 | -7/Factory | Destroyed by Y-54 Guardian with Gatling Laser Last Messages --------------- 09335_ Authchip [Processor] destroyed. 09350_ System corrupted: Matter fused (-7). 09365_ Acquired Hvy. Ion Cannon. 09376_ RJ:3BOGZBL N0DKBSL2|TZE07C 09391_ System corrupted: Heat flow error (+234). 09406_ Fusion Modulator explodes. 09406_ Repair Station disabled. 09406_ Backup Plating I tumbles out of repair station. 09406_ Backup Power I tumbles out of repair station. 09406_ Backup Laser I tumbles out of repair station. 09406_ Backup Propulsion I tumbles out of repair station. 09406_ Backup Power I tumbles out of repair station. 09406_ Fusion Modulator explodes. 09406_ Backup Power I tumbles out of repair station. 09406_ Backup Laser I tumbles out of repair station. 09406_ Backup Plating I tumbles out of repair station. 09406_ Backup Laser I tumbles out of repair station. 09413_ %CHO3J0R3OVXZPRLQYBXC0>6FIV#8BN6BEHQ%U 09413_ Hvy. Ion Cannon destroyed. 09415_ Acquired Backup Laser I. Map ----- +----------------------------------------------------+ | ??????????????????"""""?"""""?????????????? | | ??????????????????"""???"""???????????????? | | ??????????????????????????????????????????? | | ??????????????????"""""?"""""?????????????? | | ??????????????????"""""?"""""?????????????? | | ??????????????????"""???"""???????????????? | | ??????????????????????????????????????????? | | ??????????????????????????????????????????? | | ??????????????????????????????????????????? | | ????????????????#######+###############???? | | ????????????????? ?? #???? | | ??????????????????? #####+##### | | ????????????????????? # T # | | ??????????????????????? # # | | ????????????????????????? # """ """ # | | ???????????####+######????# # """ """ # | | ??????????? ????# # """ """ # | | ?"""??????? ????# # # | | """"??????" != ???# !=# """ """ # | | """"??????T != ???# " """ """ # | | ??????????" == ???# =|+ """ """ " | | ?????????? ???# # # | | ????????????##;;;;;;;;;#### # """ """ # | | ????????????#; # # """ """ # | | ????????????#; "# # """ """ # | | ????????????#; [*@; # # | | ????????????# !* ; # # | | ????????????# !YY; # # | | ????????????#; ; ######+#### | | ????????????#; ; #????# #??? | | ????????????#; ; ###??# #??? | | ????????????## ; #??# #??? | | ?????????????# ; #??# #??? | | ?????????????# ; #??# #??? | | ?????????????# ! # #??# #??? | | ?????????????############## #??# #??? | | ???????????????####################?## ##?? | | ???????????????# ! ### #?? | | ???????????????# + " #?? | | ???????????????# ### #?? | | ???????????????# #?## ##?? | | ???????????????# """"""" """"""" #??# #??? | | ???????????????# """"""" """"""" #### #??? | | ???????????????# """"""" """"""" / #??? | | ???????????????# """"""" """"""" # #??? | | ???????????????##########/######### #??? | | ???????????????????????# #??? | | ???????????????????????# ###########+##?? | | ???????????????????????# #???????# #? | | ???????????????????????# #???????# ! = #? | +----------------------------------------------------+ Best States ------------- Heat Dissipation 45 Energy Generation 23 Energy Capacity 335 Matter Stores 300 Matter Capacity 300 Sight Range 18 Robot Scan Range 14 Terrain Scan Range 16 Terrain Scan Density 210 Armor Coverage 150 Core Shielding 20 Evasion (%) 55 Melee Accuracy 5 Recoil Reduction 4 Offensive Hacking 10 Authchip Count 1 Item Schematics ----------------- None Robot Schematics ------------------ None Fabricated ------------ Nothing Repaired ---------- Imp. Flight Unit | 27% | -9/Materials Imp. Flight Unit | 47% | -9/Materials | Broken Assault Cannon | 28% | -8/Storage Beam Rifle | 37% | -8/Storage Studied --------- None Alien Tech Used ----------------- None Achievements -------------- None Challenges ------------ None Game ------ Seed XenonWeaponFemtoactuators Manual? 0 Play Time 01:20:13 Cumulative 278.5 hours Start 2026.08.10 @ 17:36:08 End 2026.08.10 @ 19:01:45 Sessions 1 Manual Loads 0 Difficulty Rogue Special Mode None Game No. 427 Rogue 427 Adventurer 0 Explorer 0 Win Type - Total 0 Types 0/0/0/0/0/0/0/0/0/0 Lore% 51 Gallery% 51 Achievement% 32 Wizard Run 0 Options --------- Layout 0 ASCII 0 Keyboard 1 Movement Numpad Keybinds 0 Fullscreen 1 Font 18/SmallcapsGlow Map View 76x50 Zoom Use 0% Tactical HUD 1 Map Filters NONE Filters NONE Steam 1 RUN: e5d8c66e-c29e-4a35-8016-181fd7da7fff